fUST/lending_fUST_20251231
["ID","MTS","AMOUNT","RATE_DAILY","PERIOD"]
[400205616,1767195061578,-805.861522,0.00027397,7]
[400205617,1767195061588,-151.0,0.00027397,7]
[400205618,1767195061598,-805.861522,0.00027397,7]
[400205619,1767195061608,-151.0,0.00027397,7]
[400205620,1767195061619,-805.861522,0.00027397,7]
[400205621,1767195061629,-151.0,0.00027397,7]
[400205622,1767195061639,-151.0,0.00027397,7]
[400205623,1767195061649,-187.899686,0.00027397,7]
[400205624,1767195061659,-151.0,0.00027397,7]
[400205625,1767195061670,-805.861522,0.00027397,7]
[400205626,1767195061680,-151.743207,0.00027397,7]
[400205627,1767195061690,-805.861522,0.00027397,7]
[400205628,1767195061700,-151.0,0.00027397,7]
[400205629,1767195061709,-805.861522,0.00027397,7]
[400205630,1767195061719,-151.0,0.00027397,7]
[400205631,1767195061729,-805.861522,0.00027397,7]
[400205632,1767195061739,-151.0,0.00027397,7]
[400205633,1767195061749,-805.861522,0.00027397,7]
[400205634,1767195061759,-151.0,0.00027397,7]
[400205635,1767195061769,-151.0,0.00027397,7]
[400205636,1767195061779,-805.861522,0.00027397,7]
[400205637,1767195061789,-180.131184,0.00027397,7]
[400205638,1767195061799,-805.861521,0.00027397,7]
[400205639,1767195061808,-151.0,0.00027397,7]
[400205640,1767195061818,-151.0,0.00027397,7]
[400205641,1767195061827,-151.0,0.00027397,7]
[400205642,1767195061837,-151.0,0.00027397,7]
[400205643,1767195061847,-151.0,0.00027397,7]
[400205644,1767195061856,-151.0,0.00027397,7]
[400205645,1767195061866,-151.0,0.00027397,7]
[400205646,1767195061876,-257.669759,0.00027397,7]
[400205647,1767195061886,-151.278502,0.00027397,7]
[400205648,1767195061895,-1471.645655,0.00027397,7]
[400205649,1767195061905,-1471.645655,0.00027397,7]
[400205650,1767195061914,-1471.645655,0.00027397,7]
[400205651,1767195061923,-1471.645655,0.00027397,7]
[400205652,1767195061933,-1471.645655,0.00027397,7]
[400205653,1767195061943,-1471.645655,0.00027397,7]
[400205654,1767195061953,-1471.645655,0.00027397,7]
[400205655,1767195061966,-1471.645655,0.00027397,7]
[400205656,1767195061976,-1471.645655,0.00027397,7]
[400205657,1767195061986,-1471.645655,0.00027397,7]
[400205658,1767195061996,-1471.645655,0.00027397,7]
[400205659,1767195062006,-1471.645655,0.00027397,7]
[400205660,1767195062017,-1471.645655,0.00027397,7]
[400205661,1767195062027,-1471.645655,0.00027397,7]
[400205662,1767195062037,-1471.645655,0.00027397,7]
[400205663,1767195062047,-1471.645655,0.00027397,7]
[400205664,1767195062057,-1471.645655,0.00027397,7]
[400205665,1767195062067,-1471.645655,0.00027397,7]
[400205666,1767195062078,-1471.645655,0.00027397,7]
[400205667,1767195062087,-1471.645646,0.00027397,7]
[400205668,1767195062097,-151.0,0.00027397,7]
[400205669,1767195062106,-151.0,0.00027397,7]
[400205670,1767195062116,-278.071042,0.00027397,7]
[400205671,1767195062125,-151.0,0.00027397,7]
[400205672,1767195062135,-151.0,0.00027397,7]
[400205673,1767195062144,-156.003217,0.00027397,7]
[400205674,1767195062154,-151.0,0.00027397,7]
[400205675,1767195062163,-151.0,0.00027397,7]
[400205676,1767195062173,-151.0,0.00027397,7]
[400205677,1767195062182,-151.0,0.00027397,7]
[400205678,1767195062192,-151.0,0.00027397,7]
[400205679,1767195062201,-151.0,0.00027397,7]
[400205680,1767195062211,-194.97163,0.00027397,7]
[400205681,1767195062220,-151.0,0.00027397,7]
[400205682,1767195062230,-299.126563,0.00027397,7]
[400205683,1767195062239,-178.593012,0.00027397,2]
[400205684,1767195062248,-151.0,0.00027397,7]
[400205685,1767195062259,-151.0,0.00027397,7]
[400205686,1767195062268,-151.0,0.00027397,7]
[400205687,1767195062277,-151.0,0.00027397,7]
[400205688,1767195062286,-151.0,0.00027397,7]
[400205689,1767195062296,-221.765393,0.00027397,7]
[400205690,1767195062306,-151.0,0.00027397,7]
[400205691,1767195062315,-151.0,0.00027397,7]
[400205692,1767195062326,-151.0,0.00027397,7]
[400205693,1767195062336,-151.0,0.00027397,7]
[400205694,1767195062345,-151.0,0.00027397,7]
[400205695,1767195062355,-151.0,0.00027397,7]
[400205696,1767195062364,-151.0,0.00027397,7]
[400205697,1767195062373,-151.0,0.00027397,7]
[400205698,1767195062383,-151.0,0.00027397,7]
[400205699,1767195062392,-151.0,0.00027397,7]
[400205700,1767195062403,-151.0,0.00027397,7]
[400205701,1767195062412,-151.0,0.00027397,7]
[400205702,1767195062421,-151.0,0.00027397,7]
[400205703,1767195062431,-151.0,0.00027397,7]
[400205704,1767195062441,-151.0,0.00027397,7]
[400205705,1767195062450,-300.511634,0.00027397,7]
[400205706,1767195062460,-151.0,0.00027397,7]
[400205707,1767195062469,-151.0,0.00027397,7]
[400205708,1767195062479,-160.429789,0.00027397,7]
[400205709,1767195062488,-151.0,0.00027397,7]
[400205710,1767195062635,-151.0,0.00027397,7]
[400205711,1767195062645,-151.0,0.00027397,7]
[400205712,1767195062656,-151.0,0.00027397,7]
[400205713,1767195062665,-297.109657,0.00027397,7]
[400205714,1767195062675,-237.688394,0.00027397,7]
[400205715,1767195062686,-237.688394,0.00027397,7]
[400205716,1767195062695,-298.426318,0.00027397,7]
[400205717,1767195062705,-237.688394,0.00027397,7]
[400205718,1767195062715,-298.426318,0.00027397,7]
[400205719,1767195062725,-237.688394,0.00027397,7]
[400205720,1767195062734,-298.426318,0.00027397,7]
[400205721,1767195062744,-237.688394,0.00027397,7]
[400205722,1767195062755,-298.426318,0.00027397,7]
[400205723,1767195062765,-237.688394,0.00027397,7]
[400205724,1767195062775,-298.426318,0.00027397,7]
[400205725,1767195062785,-237.688394,0.00027397,7]
[400205726,1767195062794,-298.426318,0.00027397,7]
[400205727,1767195062803,-237.688394,0.00027397,7]
[400205728,1767195062813,-298.426318,0.00027397,7]
[400205729,1767195062822,-237.688394,0.00027397,7]
[400205730,1767195062833,-298.426318,0.00027397,7]
[400205731,1767195062842,-237.688394,0.00027397,7]
[400205732,1767195062852,-298.426318,0.00027397,7]
[400205733,1767195062861,-237.688394,0.00027397,7]
[400205734,1767195062871,-298.426318,0.00027397,7]
[400205735,1767195062880,-237.688394,0.00027397,7]
[400205736,1767195062889,-298.426318,0.00027397,7]
[400205737,1767195062899,-237.688394,0.00027397,7]
[400205738,1767195062908,-298.426318,0.00027397,7]
[400205739,1767195062918,-237.688394,0.00027397,7]
[400205740,1767195062927,-298.426318,0.00027397,7]
[400205741,1767195062937,-237.688394,0.00027397,7]
[400205742,1767195062946,-298.426318,0.00027397,7]
[400205743,1767195062957,-237.688394,0.00027397,7]
[400205744,1767195062969,-237.688394,0.00027397,7]
[400205745,1767195062979,-298.426318,0.00027397,7]
[400205746,1767195062988,-237.688394,0.00027397,7]
[400205747,1767195062999,-298.426318,0.00027397,7]
[400205748,1767195063008,-237.688394,0.00027397,7]
[400205749,1767195063018,-298.426318,0.00027397,7]
[400205750,1767195063029,-237.688384,0.00027397,7]
[400205752,1767195063039,-298.426318,0.00027397,7]
[400205753,1767195063048,-298.426318,0.00027397,7]
[400205754,1767195063058,-298.426313,0.00027397,7]
[400205755,1767195063069,-151.0,0.00027397,7]
[400205756,1767195063080,-151.0,0.00027397,7]
[400205757,1767195063090,-151.0,0.00027397,7]
[400205758,1767195063099,-151.0,0.00027397,7]
[400205759,1767195063109,-151.0,0.00027397,7]
[400205760,1767195063118,-151.0,0.00027397,7]
[400205762,1767195063128,-151.0,0.00027397,7]
[400205763,1767195063138,-151.0,0.00027397,7]
[400205764,1767195063148,-151.0,0.00027397,7]
[400205765,1767195063157,-206.620926,0.00027397,7]
[400205766,1767195063167,-151.0,0.00027397,7]
[400205767,1767195063176,-151.0,0.00027397,7]
[400205768,1767195063186,-151.0,0.00027397,7]
[400205769,1767195063196,-151.0,0.00027397,7]
[400205770,1767195063205,-151.0,0.00027397,7]
[400205771,1767195063215,-151.0,0.00027397,7]
[400205772,1767195063225,-151.0,0.00027397,7]
[400205773,1767195063235,-151.0,0.00027397,7]
[400205774,1767195063245,-151.0,0.00027397,7]
[400205775,1767195063256,-151.0,0.00027397,7]
[400205776,1767195063266,-151.0,0.00027397,7]
[400205777,1767195063276,-151.0,0.00027397,7]
[400205778,1767195063286,-225.531024,0.00027397,7]
[400205779,1767195063296,-643.406088,0.00027397,7]
[400205780,1767195063306,-643.406088,0.00027397,7]
[400205781,1767195063315,-643.406088,0.00027397,7]
[400205782,1767195063325,-643.406088,0.00027397,7]
[400205783,1767195063335,-643.406088,0.00027397,7]
[400205784,1767195063345,-643.406088,0.00027397,7]
[400205785,1767195063354,-643.406088,0.00027397,7]
[400205786,1767195063364,-643.406088,0.00027397,7]
[400205787,1767195063374,-643.406088,0.00027397,7]
[400205788,1767195063383,-643.406088,0.00027397,7]
[400205789,1767195063393,-643.406088,0.00027397,7]
[400205790,1767195063402,-643.406088,0.00027397,7]
[400205791,1767195063412,-643.406088,0.00027397,7]
[400205792,1767195063421,-1246.529649,0.00027397,7]
[400205793,1767195063430,-643.406088,0.00027397,7]
[400205794,1767195063439,-1246.529649,0.00027397,7]
[400205795,1767195063448,-643.406088,0.00027397,7]
[400205796,1767195063458,-1246.529649,0.00027397,7]
[400205797,1767195063467,-643.406088,0.00027397,7]
[400205798,1767195063476,-1246.529649,0.00027397,7]
[400205799,1767195063486,-1246.529649,0.00027397,7]
[400205800,1767195063497,-643.406088,0.00027397,7]
[400205801,1767195063507,-1246.529649,0.00027397,7]
[400205802,1767195063517,-643.406088,0.00027397,7]
[400205803,1767195063527,-1246.529649,0.00027397,7]
[400205804,1767195063537,-643.406088,0.00027397,7]
[400205805,1767195063547,-643.406079,0.00027397,7]
[400205806,1767195063557,-1246.529649,0.00027397,7]
[400205807,1767195063567,-1246.529649,0.00027397,7]
[400205808,1767195063577,-151.0,0.00027397,7]
[400205809,1767195063587,-1246.529649,0.00027397,7]
[400205810,1767195063597,-500.65812564,0.00027397,5]
[400205811,1767195063606,-150.0,0.00027397,5]
[400205812,1767195063616,-150.58382148,0.00027397,5]
[400205813,1767195063626,-726.0,0.000274,3]
[400205814,1767195063635,-500.0,0.00027415,5]
[400205815,1767195063645,-5000.0,0.00027423,10]
[400205816,1767195063655,-500.0,0.00027424,7]
[400205817,1767195063664,-1100.0,0.00027475,7]
[400205818,1767195063673,-2000.0,0.00027506,7]
[400205819,1767195063683,-1100.0,0.00027513,7]
[400205820,1767195063693,-2000.0,0.00027515,7]
[400205821,1767195063703,-2000.0,0.00027524,7]
[400205822,1767195063712,-2000.0,0.00027533,7]
[400205823,1767195063721,-2000.0,0.00027542,7]
[400205824,1767195063731,-2000.0,0.0002755,7]
[400205825,1767195063741,-2000.0,0.00027559,7]
[400205826,1767195063751,-2000.0,0.00027562,7]
[400205827,1767195063760,-2000.0,0.00027568,7]
[400205828,1767195063770,-2000.0,0.0002757,7]
[400205829,1767195063779,-2000.0,0.00027577,7]
[400205830,1767195063789,-2000.0,0.00027579,7]
[400205831,1767195063798,-2000.0,0.00027586,7]
[400205832,1767195063808,-2000.0,0.00027588,7]
[400205833,1767195063818,-2000.0,0.00027594,7]
[400205834,1767195063828,-2000.0,0.00027597,7]
[400205835,1767195063838,-2000.0,0.00027603,7]
[400205836,1767195063847,-2000.0,0.00027606,7]
[400205837,1767195063857,-2000.0,0.00027612,7]
[400205838,1767195063866,-2000.0,0.00027614,7]
[400205839,1767195063875,-2000.0,0.00027621,7]
[400205840,1767195063884,-2000.0,0.00027623,7]
[400205841,1767195063894,-2000.0,0.00027623,7]
[400205842,1767195063903,-2000.0,0.0002763,7]
[400205843,1767195063912,-2000.0,0.00027632,7]
[400205844,1767195063922,-2000.0,0.00027632,7]
[400205845,1767195063931,-2000.0,0.00027638,7]
[400205846,1767195063941,-2000.0,0.00027641,7]
[400205847,1767195063950,-2000.0,0.00027641,7]
[400205848,1767195063960,-2000.0,0.00027647,7]
[400205849,1767195063970,-2000.0,0.0002765,7]
[400205850,1767195063980,-2000.0,0.0002765,7]
[400205851,1767195063990,-2000.0,0.00027656,7]
[400205852,1767195064001,-2000.0,0.00027658,7]
[400205853,1767195064010,-2000.0,0.00027658,7]
[400205854,1767195064020,-2000.0,0.00027665,7]
[400205855,1767195064029,-2000.0,0.00027667,7]
[400205856,1767195064041,-2000.0,0.00027667,7]
[400205857,1767195064051,-807.79,0.00027671,2]
[400205858,1767195064060,-1307.38,0.00027671,2]
[400205859,1767195064070,-11635.72,0.00027671,2]
[400205860,1767195064080,-2518.78,0.00027671,2]
[400205861,1767195064089,-2000.0,0.00027674,7]
[400205862,1767195064099,-2000.0,0.00027676,7]
[400205863,1767195064109,-2000.0,0.00027676,7]
[400205864,1767195064118,-2000.0,0.00027682,7]
[400205865,1767195064128,-2000.0,0.00027685,7]
[400205866,1767195064138,-2000.0,0.00027685,7]
[400205867,1767195064148,-2000.0,0.00027691,7]
[400205868,1767195064157,-2000.0,0.00027694,7]
[400205869,1767195064167,-2000.0,0.00027694,7]
[400205870,1767195064176,-2000.0,0.000277,7]
[400205871,1767195064186,-2000.0,0.00027702,7]
[400205872,1767195064196,-2000.0,0.00027702,7]
[400205873,1767195064206,-2000.0,0.00027711,7]
[400205874,1767195064215,-2000.0,0.00027711,7]
[400205875,1767195064225,-2000.0,0.0002772,7]
[400205876,1767195064235,-2000.0,0.0002772,7]
[400205877,1767195064245,-170.5,0.00027725,2]
[400205878,1767195064255,-500.0,0.00027767,20]
[400205879,1767195064265,-500.0,0.00027767,5]
[400205880,1767195064275,-500.0,0.00027767,20]
[400205881,1767195064284,-500.0,0.00027767,5]
[400205882,1767195064295,-500.0,0.00027767,5]
[400205883,1767195064305,-2000.0,0.00027777,7]
[400205884,1767195064315,-2000.0,0.00027786,7]
[400205885,1767195064325,-2000.0,0.00027794,7]
[400205886,1767195064335,-13838.09,0.000278,2]
[400205887,1767195064344,-2000.0,0.00027803,7]
[400205888,1767195064354,-2000.0,0.00027812,7]
[400205889,1767195064364,-2000.0,0.00027821,7]
[400205890,1767195064374,-2000.0,0.0002783,7]
[400205891,1767195064384,-2000.0,0.00027838,7]
[400205892,1767195064394,-2000.0,0.00027847,7]
[400205893,1767195064404,-2000.0,0.00027856,7]
[400205894,1767195064413,-2000.0,0.00027865,7]
[400205895,1767195064423,-2000.0,0.00027874,7]
[400205896,1767195064434,-2000.0,0.00027882,7]
[400205897,1767195064443,-2000.0,0.00027891,7]
[400205898,1767195064454,-3877.02931608,0.000279,10]
[400205899,1767195064463,-2000.0,0.000279,7]
[400205900,1767195064473,-2000.0,0.00027909,7]
[400205901,1767195064483,-2000.0,0.00027918,7]
[400205902,1767195064493,-2000.0,0.00027926,7]
[400205903,1767195064503,-2000.0,0.00027935,7]
[400205904,1767195064512,-2000.0,0.00027944,7]
[400205905,1767195064522,-807.79,0.00027945,2]
[400205906,1767195064533,-1307.38,0.00027945,2]
[400205907,1767195064543,-11635.72,0.00027945,2]
[400205908,1767195064553,-2518.78,0.00027945,2]
[400205909,1767195064562,-152.36606131,0.00027945,5]
[400205910,1767195064573,-24425.5686256,0.00027999,7]
[400205911,1767195064584,-166.0,0.00028,14]
[400205912,1767195064594,-500.0,0.00028024,14]
[400205913,1767195064603,-1396.15120835,0.00028026,2]
[400205914,1767195064612,-1100.0,0.00028128,7]
[400205915,1767195064622,-294.99950486,0.00028181,24]
[400205916,1767195064631,-807.83054229,0.00028219,2]
[400205917,1767195064641,-1307.53635778,0.00028219,2]
[400205918,1767195064651,-11635.74097059,0.00028219,2]
[400205919,1767195064661,-2518.8,0.00028219,2]
[400205920,1767195064671,-800.0,0.0002828,2]
[400205921,1767195064680,-160.0,0.00028282,3]
[400205922,1767195064690,-1350.2127747,0.00028314,30]
[400205923,1767195064701,-800.0,0.00028436,2]
[400205924,1767195064711,-800.0,0.00028445,2]
[400205925,1767195064721,-800.0,0.00028494,2]
[400205926,1767195064731,-183195.59207933,0.000285,7]
[400205927,1767195064741,-171.8,0.000285,2]
[400205928,1767195064750,-701.12110858,0.000285,7]
[400205929,1767195064760,-1139.62,0.000285,14]
[400205930,1767195064770,-800.0,0.00028533,2]
[400205931,1767195064780,-1100.0,0.00028541,7]
[400205932,1767195064790,-1357.36960251,0.00028571,7]
[400205933,1767195064801,-1100.0,0.00028599,7]
[400205934,1767195064810,-152.24102269,0.0002866,2]
[400205935,1767195064820,-800.0,0.0002866,2]
[400205936,1767195064830,-1100.0,0.00028719,7]
[400205937,1767195064840,-726.0,0.0002872,3]
[400205938,1767195064849,-1022.10125931,0.00028745,2]
[400205939,1767195064858,-26860.43220075,0.0002876,2]
[400205940,1767195064867,-19129.54201656,0.0002876,2]
[400205941,1767195064876,-5770.30317135,0.0002876,30]
[400205942,1767195064885,-500.0,0.0002876,5]
[400205943,1767195064895,-500.0,0.0002876,5]
[400205944,1767195064904,-603.09510429,0.0002876,20]
[400205945,1767195064914,-500.0,0.0002876,5]
[400205946,1767195064923,-500.0,0.0002876,20]
[400205947,1767195064932,-500.0,0.0002876,5]
[400205948,1767195064942,-500.0,0.0002876,5]
[400205949,1767195064952,-500.0,0.0002876,20]
[400205950,1767195064965,-5000.0,0.00028766,15]
[400205951,1767195064975,-335.966046,0.00028767,60]
[400205952,1767195064984,-364.03,0.00028767,7]
[400205953,1767195064995,-2804.79,0.00028767,2]
[400205954,1767195065005,-160.0,0.00028773,4]
[400205955,1767195065014,-500.0,0.00028786,5]
[400205956,1767195065024,-1100.0,0.00028794,7]
[400205957,1767195065036,-172.34644729,0.000288,7]
[400205958,1767195065045,-2804.88,0.000288,2]
[400205959,1767195065055,-2804.88,0.000288,2]
[400205960,1767195065065,-1100.0,0.0002887,7]
[400205961,1767195065074,-2804.88,0.000289,2]
[400205962,1767195065084,-2804.88,0.000289,2]
[400205963,1767195065094,-166.0,0.00028957,14]
[400205964,1767195065104,-1000.0,0.00028977,30]
[400205965,1767195065113,-1000.0,0.00028977,30]
[400205966,1767195065122,-1000.0,0.00028977,30]
[400205967,1767195065131,-715.0,0.00028977,30]
[400205968,1767195065141,-166.0,0.00028997,14]
[400205969,1767195065150,-889.58046621,0.00029,2]
[400205970,1767195065159,-2406.6075983,0.00029,10]
[400205971,1767195065169,-160.0,0.00029,5]
[400205972,1767195065178,-2804.88,0.00029,2]
[400205973,1767195065188,-500.0,0.00029004,7]
[400205974,1767195065199,-874.0,0.00029075,3]
[400205975,1767195065208,-2804.88,0.000291,2]
[400205976,1767195065218,-2804.88,0.000291,2]
[400205977,1767195065227,-1100.0,0.00029135,7]
[400205978,1767195065237,-294.99950486,0.0002917,26]
[400205979,1767195065246,-2804.88,0.000292,2]
[400205980,1767195065256,-2804.88,0.000292,2]
[400205981,1767195065266,-1100.0,0.00029235,7]
[400205982,1767195065275,-160.0,0.00029265,5]
[400205983,1767195065284,-2804.88,0.000293,2]
[400205984,1767195065295,-1100.0,0.00029302,7]
[400205985,1767195065304,-2804.88,0.000294,2]
[400205986,1767195065314,-2804.88,0.000294,2]
[400205987,1767195065323,-1100.0,0.00029409,7]
[400205988,1767195065333,-5000.0,0.00029411,2]
[400205989,1767195065343,-5052.89879708,0.0002943,22]
[400205990,1767195065352,-5000.0,0.0002943,21]
[400205991,1767195065362,-1100.0,0.00029445,7]
[400205992,1767195065371,-1100.0,0.00029484,7]
[400205993,1767195065381,-422.6347024,0.000295,120]
[400205994,1767195065390,-2804.88,0.000295,2]
[400205995,1767195065400,-2804.88,0.000295,2]
[400205996,1767195065410,-2804.88,0.000296,2]
[400205997,1767195065419,-2804.88,0.000296,2]
[400205998,1767195065429,-170.5,0.00029606,3]
[400205999,1767195065438,-541.24389104,0.00029668,14]
[400206000,1767195065447,-2804.88,0.000297,2]
[400206001,1767195065457,-5884.83135051,0.0002973,2]
[400206002,1767195065467,-160.0,0.00029756,6]
[400206003,1767195065476,-1139.62,0.000298,14]
[400206004,1767195065485,-2804.88,0.000298,2]
[400206005,1767195065495,-2804.88,0.000298,2]
[400206006,1767195065615,-14716.15451875,0.00029817,2]
[400206007,1767195065626,-171.8,0.000299,2]
[400206008,1767195065637,-2804.88,0.000299,2]
[400206009,1767195065647,-2804.88,0.000299,2]
[400206010,1767195065656,-1100.0,0.00029967,7]
[400206011,1767195065666,-301.08028632,0.0003,2]
[400206012,1767195065675,-10188.87347094,0.0003,7]
[400206013,1767195065685,-1000.0,0.0003,120]
[400206014,1767195065694,-31279.76360274,0.0003,10]
[400206015,1767195065703,-220.0,0.0003,120]
[400206016,1767195065713,-1041.66666667,0.0003,30]
[400206017,1767195065722,-1292.0,0.0003,3]
[400206018,1767195065732,-2672.0,0.0003,5]
[400206019,1767195065741,-1200.20317365,0.0003,2]
[400206020,1767195065751,-200.0,0.0003,120]
[400206021,1767195065760,-1041.66666667,0.0003,30]
[400206022,1767195065770,-2804.88,0.0003,2]
[400206023,1767195065779,-1100.0,0.00030004,7]
[400206024,1767195065788,-1100.0,0.00030043,7]
[400206025,1767195065797,-5051.80608518,0.000301,120]
[400206026,1767195065807,-2804.88,0.000301,2]
[400206027,1767195065817,-2804.88,0.000301,2]
[400206028,1767195065826,-1100.0,0.00030122,7]
[400206029,1767195065836,-294.99950486,0.00030159,27]
[400206030,1767195065846,-1100.0,0.00030174,7]
[400206031,1767195065858,-2804.88,0.000302,2]
[400206032,1767195065868,-2804.88,0.000302,2]
[400206033,1767195065877,-500.0,0.00030226,5]
[400206034,1767195065886,-160.0,0.00030248,7]
[400206035,1767195065895,-500.0,0.00030249,7]
[400206036,1767195065904,-1396.15120835,0.0003028,2]
[400206037,1767195065914,-2804.88,0.000303,2]
[400206038,1767195065923,-627.0,0.00030301,2]
[400206039,1767195065932,-1364.0,0.00030301,2]
[400206040,1767195065942,-150.0,0.00030301,2]
[400206041,1767195065952,-416.0,0.00030301,2]
[400206042,1767195065964,-416.0,0.00030301,2]
[400206043,1767195065973,-726.0,0.00030355,3]
[400206044,1767195065983,-2804.88,0.000304,2]
[400206045,1767195065993,-2804.88,0.000304,2]
[400206046,1767195066003,-166.0,0.00030447,14]
[400206047,1767195066013,-2804.88,0.000305,2]
[400206048,1767195066022,-2804.88,0.000305,2]
[400206049,1767195066033,-1100.0,0.00030541,7]
[400206050,1767195066042,-2804.88,0.000306,2]
[400206051,1767195066052,-2804.88,0.000306,2]
[400206052,1767195066062,-1100.0,0.00030656,7]
[400206053,1767195066071,-2804.88,0.000307,2]
[400206054,1767195066080,-160.0,0.0003074,8]
[400206055,1767195066089,-1092.32195651,0.00030745,2]
[400206056,1767195066100,-151.0,0.000308,15]
[400206057,1767195066109,-2804.88,0.000308,2]
[400206058,1767195066118,-2804.88,0.000308,2]
[400206059,1767195066127,-1100.0,0.00030802,7]
[400206060,1767195066137,-1100.0,0.00030806,7]
[400206061,1767195066147,-2804.88,0.000309,2]
[400206062,1767195066156,-2804.88,0.000309,2]
[400206063,1767195066166,-956.2,0.00030958,30]
[400206064,1767195066176,-183.82771828,0.00031,120]
[400206065,1767195066185,-182.37879673,0.00031,120]
[400206066,1767195066195,-198.32485528,0.00031,120]
[400206067,1767195066205,-185.09337354,0.00031,120]
[400206068,1767195066215,-183.42010434,0.00031,120]
[400206069,1767195066226,-309.65070131,0.00031,120]
[400206070,1767195066236,-206.24088796,0.00031,120]
[400206071,1767195066245,-178.8674121,0.00031,120]
[400206072,1767195066255,-161.01318651,0.00031,120]
[400206073,1767195066264,-301.14881915,0.00031,120]
[400206074,1767195066274,-1430.86618739,0.00031,120]
[400206075,1767195066283,-2804.88,0.00031,2]
[400206076,1767195066297,-2804.88,0.000311,2]
[400206077,1767195066307,-2804.88,0.000311,2]
[400206078,1767195066317,-294.99950486,0.00031148,28]
[400206079,1767195066327,-171.8,0.000312,2]
[400206080,1767195066337,-2804.88,0.000312,2]
[400206081,1767195066347,-2804.88,0.000312,2]
[400206082,1767195066356,-160.0,0.00031231,9]
[400206083,1767195066366,-726.0,0.00031248,3]
[400206084,1767195066376,-2804.88,0.000313,2]
[400206085,1767195066386,-2804.88,0.000314,2]
[400206086,1767195066395,-2804.88,0.000314,2]
[400206087,1767195066405,-160.0,0.00031425,46]
[400206088,1767195066415,-170.5,0.00031487,4]
[400206089,1767195066425,-150.0,0.000315,120]
[400206090,1767195066435,-2804.88,0.000315,2]
[400206091,1767195066445,-2804.88,0.000315,2]
[400206092,1767195066455,-956.2,0.00031506,31]
[400206093,1767195066464,-2804.88,0.000316,2]
[400206094,1767195066474,-160.0,0.00031723,10]
[400206095,1767195066484,-500.0,0.00031737,5]
[400206096,1767195066493,-1041.66666667,0.000318,10]
[400206097,1767195066503,-1000.0,0.00031875,30]
[400206098,1767195066513,-1000.0,0.00031875,30]
[400206099,1767195066522,-1000.0,0.00031875,30]
[400206100,1767195066532,-183.82771828,0.000319,120]
[400206101,1767195066542,-182.37879673,0.000319,120]
[400206102,1767195066551,-198.32485528,0.000319,120]
[400206103,1767195066562,-185.09337354,0.000319,120]
[400206104,1767195066572,-183.42010434,0.000319,120]
[400206105,1767195066581,-178.8674121,0.000319,120]
[400206106,1767195066591,-161.01318651,0.000319,120]
[400206107,1767195066601,-301.14881915,0.000319,120]
[400206108,1767195066611,-1430.86618739,0.000319,120]
[400206109,1767195066621,-150.0,0.00031951,30]
[400206110,1767195066630,-200.0,0.00032,120]
[400206111,1767195066640,-26677.68431593,0.00032,120]
[400206112,1767195066655,-5000.0,0.00032,50]
[400206113,1767195066665,-956.2,0.00032054,32]
[400206114,1767195066675,-294.99950486,0.00032137,30]
[400206115,1767195066684,-160.0,0.00032214,11]
[400206116,1767195066694,-1100.0,0.00032225,7]
[400206117,1767195066703,-500.0,0.0003223,7]